[Event "POR-ch Absolute 2018"]
[Site "Braga"]
[Date "2018.09.07"]
[Round "7"]
[White "Padeiro, Jose"]
[Black "Fernandes, Antonio"]
[Result "0-1"]
[ECO "B24"]
[WhiteElo "2209"]
[BlackElo "2389"]
[Annotator "NA"]
[PlyCount "87"]
[EventDate "2018.09.02"]
[EventType "tourn"]
[EventCountry "POR"]
[SourceTitle "playchess.com"]
[Source "ChessBase"]
[SourceQuality "1"]
[TimeControl "40/5400+30:1800+30"]

1. e4 c5 2. Nc3 Nc6 3. Bb5 Nd4 4. Bc4 e6 5. Nge2 Ne7 6. Nxd4 cxd4 7. Ne2 Nc6 {LiveBook: 147 Games} 8. d3 g6 9. O-O Bg7 {B30: Sicilian: 2...Nc6 3 Bb5, lines without ...g6} 10. f4 (10. Bd2 O-O 11. b4 a5 12. bxa5 Nxa5 13. Bb4 d6 14. Bb3 Qc7 15. Qd2 Bd7 16. f4 Rfc8 17. Rac1 {½-½ (77) Paehtz,E (2472)-Fier,A (2608) Nancy 2016}) 10... O-O 11. Qe1 Na5 $146 ({Predecessor:} 11... d5 12. exd5 exd5 13. Bb3 Re8 14. Qf2 Be6 15. Ng3 Ne7 16. Bd2 Nf5 17. Nxf5 Bxf5 18. Rae1 Be6 19. Bb4 Qb6 20. Bd2 Rac8 21. Re2 Qc6 22. Rfe1 {½-½ (22) Swennen,F (1401)-Huttl,S (1614) Blankenberge 2014}) 12. Qg3 (12. Bb5 $11) 12... d5 13. Bb3 $1 Nxb3 14. axb3 dxe4 15. dxe4 Qc7 16. Qd3 Rd8 17. e5 Bf8 18. Kh1 Bc5 19. Bd2 Bd7 20. b4 Bb6 21. Be1 a6 22. Bh4 Bb5 23. Bxd8 Rxd8 24. Qe4 Bc6 25. Qd3 Bb5 26. Qe4 d3 27. cxd3 Bxd3 28. Qf3 Qc4 29. Rac1 Qd5 30. Nc3 Qxf3 31. Rxf3 Bf5 32. Rd1 Rc8 33. h3 Kf8 34. Rd2 h5 35. Kh2 Rc4 36. Rd7 Rxb4 37. Rd2 h4 38. Nd1 Be4 39. Rc3 Bc6 40. g3 Ke7 41. Rdd3 $17 (41. Rdc2 $15) 41... Re4 42. Rc2 Re1 43. Rcc3 Re4 44. Kh1 0-1

[Event "POR-ch Absolute 2018"]
[Site "Braga"]
[Date "2018.09.08"]
[Round "8"]
[White "Fernandes, Antonio"]
[Black "Veiga, Jose Francisco R P "]
[Result "*"]
[WhiteElo "2389"]
[BlackElo "2231"]
[Annotator "NA"]
[PlyCount "73"]
[EventDate "2018.09.02"]
[EventType "tourn"]
[EventCountry "POR"]
[SourceTitle "playchess.com"]
[Source "ChessBase"]
[SourceQuality "1"]
[TimeControl "40/5400+30:1800+30"]

1. e4 {[%emt 0:20:36]} e5 {[%emt 0:00:20]} 2. Nf3 {[%emt 0:00:05]} Nc6 {[%emt 0:00:07]} 3. Bc4 {[%emt 0:00:18]} Bc5 {[%emt 0:00:13]} 4. b4 {[%emt 0:00:09]} Bxb4 {[%emt 0:00:16]} 5. c3 {[%emt 0:00:01]} Be7 {[%emt 0:00:18]} 6. d4 {[%emt 0:02:43]} Na5 {[%emt 0:01:39]} 7. Bd3 {[%emt 0:01:35]} d6 {[%emt 0:01:26]} 8. dxe5 {[%emt 0:33:45]} dxe5 {[%emt 0:00:07]} 9. Nxe5 {[%emt 0:00:20]} Nf6 {[%emt 0:00:37]} 10. O-O {[%emt 0:03:11]} O-O {[%emt 0:00:59]} 11. Qc2 {[%emt 0:00:44]} Bd6 {[%emt 0:05:55]} 12. Nf3 {[%emt 0:00:46]} Re8 {[%emt 0:02:58]} 13. Bg5 {[%emt 0:01:05]} h6 {[%emt 0:02:10]} 14. Bh4 {[%emt 0:01:30]} b6 {[%emt 0:01:12]} 15. Nbd2 {[%emt 0:05:36]} Bb7 {[%emt 0:01:36]} 16. Rad1 {[%emt 0:04:39]} g5 {[%emt 0:11:19]} 17. Bg3 $14 {[%emt 0:04:27]} Bxg3 {[%emt 0:00:17]} 18. hxg3 {[%emt 0:00:37]} Qe7 {[%emt 0:04:29]} 19. Nd4 {[%emt 0:07:32]} Bc8 {[%emt 0:01:44]} 20. Bb5 {[%emt 0:02:53]} Rf8 {[%emt 0:00:06]} 21. Nc4 {[%emt 0:00:44]} Nxc4 {[%emt 0:04:34]} 22. Bxc4 {[%emt 0:00:05]} c5 {[%emt 0:01:50]} 23. e5 {[%emt 0:00:43]} Ng4 24. Nc6 Qc7 {[%emt 0:15:02]} 25. Rd6 {[%emt 0:00:46]} Kg7 {[%emt 0:01:39]} 26. Rfd1 {[%emt 0:02:43]} Re8 {[%emt 0:01:37]} 27. Qe4 {[%emt 0:00:51]} h5 {[%emt 0:03:47]} 28. f3 {[%emt 0:00:57]} Nh6 {[%emt 0:00:35]} 29. Qe3 {[%emt 0:00:03]} Nf5 {[%emt 0:01:01]} 30. Qxg5+ {[%emt 0:00:02]} Kf8 {[%emt 0:00:11]} 31. Qxh5 {[%emt 0:00:44]} Kg7 {[%emt 0:01:21]} 32. Qg5+ {[%emt 0:01:36]} Kf8 {[%emt 0:00:10]} 33. Qf6 {[%emt 0:00:28]} Kg8 {[%emt 0:01:11]} 34. Rd7 {[%emt 0:00:16]} Bxd7 {[%emt 0:00:36]} 35. Bxf7+ {[%emt 0:00:14]} Kh7 {[%emt 0:00:23]} 36. Bg6+ {[%emt 0:00:02]} Kh6 {[%emt 0:00:11]} 37. Bxf5+ {[%emt 0:00:03]} *

[Event "POR-ch Absolute 2018"]
[Site "Braga"]
[Date "2018.09.08"]
[Round "8"]
[White "Sousa, Andre Ventura"]
[Black "Silva, Luis Neves Da"]
[Result "1/2-1/2"]
[ECO "C01"]
[WhiteElo "2365"]
[BlackElo "2353"]
[Annotator "NA"]
[PlyCount "21"]
[EventDate "2018.09.02"]
[EventType "tourn"]
[EventCountry "POR"]
[SourceTitle "playchess.com"]
[Source "ChessBase"]
[SourceQuality "1"]
[TimeControl "40/5400+30:1800+30"]

1. e4 {[%emt 0:00:00]} e6 {[%emt 0:00:00]} 2. d4 {[%emt 0:00:00]} d5 {[%emt 0:00:00]} 3. exd5 {[%emt 0:00:00]} exd5 {[%emt 0:00:00]} 4. Nf3 {[%emt 0:00:00]} Nc6 {[%emt 0:00:02]} 5. Nc3 {[%emt 0:00:30]} Bb4 {[%emt 0:00:23]} 6. Bb5 {[%emt 0:01:40]} Nge7 {[%emt 0:02:00]} 7. O-O {[%emt 0:02:01]} O-O {[%emt 0:00:40]} 8. h3 {[%emt 0:00:45]} Bf5 {[%emt 0:04:00]} 9. Bf4 {[%emt 0:04:47]} a6 {[%emt 0:03:40]} 10. Bd3 {[%emt 0:00:25]} Qd7 {[%emt 0:03:57]} 11. Bxf5 {[%emt 0:13:48]} 1/2-1/2

[Event "POR-ch Absolute 2018"]
[Site "Braga"]
[Date "2018.09.09"]
[Round "9"]
[White "Martins, David Pires Tavares"]
[Black "Sousa, Andre Ventura"]
[Result "1-0"]
[ECO "D31"]
[WhiteElo "2402"]
[BlackElo "2365"]
[Annotator "ChessBase"]
[PlyCount "83"]
[EventDate "2018.09.02"]
[EventType "tourn"]
[EventCountry "POR"]
[SourceTitle "playchess.com"]
[Source "ChessBase"]
[SourceQuality "1"]
[TimeControl "40/5400+30:1800+30"]

1. d4 {[%emt 0:00:48]} d5 {[%emt 0:00:00]} 2. c4 {[%emt 0:00:08]} e6 {[%emt 0:00:00]} 3. Nc3 {[%emt 0:00:07]} Bb4 {[%emt 0:00:00]} 4. a3 {[%emt 0:00:18]} Bxc3+ {[%emt 0:00:00]} 5. bxc3 {[%emt 0:00:05]} Nf6 {[%emt 0:00:00]} 6. e3 {[%emt 0:00:14]} c6 {[%emt 0:00:07]} 7. Bd3 {[%emt 0:01:30]} e5 {[%emt 0:04:34]} 8. cxd5 {[%emt 0:11:08]} e4 {[%emt 0:00:08]} 9. Be2 {[%emt 0:01:19]} cxd5 {[%emt 0:01:00]} 10. a4 {[%emt 0:00:17]} O-O {[%emt 0:02:17]} 11. Ba3 {[%emt 0:04:49]} Re8 {[%emt 0:00:07]} 12. g4 {[%emt 0:11:09]} h6 {[%emt 0:12:00]} 13. h4 {[%emt 0:01:30]} Nh7 {[%emt 0:01:21]} 14. c4 {[%emt 0:13:21]} Be6 {[%emt 0:11:17]} 15. cxd5 {[%emt 0:13:49]} Bxd5 {[%emt 0:00:20]} 16. Rb1 {[%emt 0:04:38]} Nc6 {[%emt 0:12:44]} 17. Rb5 {[%emt 0:01:19]} a6 {[%emt 0:01:27]} 18. Rc5 {[%emt 0:00:05]} b6 {[%emt 0:03:09]} 19. Rc1 {[%emt 0:00:05]} b5 {[%emt 0:12:22]} 20. Kf1 {[%emt 0:00:08]} b4 {[%emt 0:00:25]} 21. Bb2 {[%emt 0:00:04]} Na5 {[%emt 0:02:35]} 22. Kg2 {[%emt 0:01:16]} Nf8 {[%emt 0:05:39]} 23. Nh3 {[%emt 0:01:19]} Ne6 {[%emt 0:08:44]} 24. g5 {[%emt 0:00:12]} hxg5 {[%emt 0:00:05]} 25. hxg5 {[%emt 0:00:05]} Rc8 {[%emt 0:06:01]} 26. Bxa6 {[%emt 0:00:54]} Rxc1 {[%emt 0:00:11]} 27. Bxc1 {[%emt 0:00:09]} g6 {[%emt 0:06:13]} 28. Bb5 {[%emt 0:00:35]} Rf8 {[%emt 0:00:48]} 29. Qg4 {[%emt 0:00:32]} f5 {[%emt 0:01:18]} 30. Qh4 {[%emt 0:02:18]} Qe7 {[%emt 0:01:31]} 31. Nf4 {[%emt 0:02:44]} Nxf4+ {[%emt 0:00:13]} 32. Qxf4 {[%emt 0:00:07]} Nb3 {[%emt 0:02:10]} 33. Rh6 {[%emt 0:08:24]} Nxc1 {[%emt 0:05:14]} 34. Rxg6+ {[%emt 0:00:09]} Kh7 {[%emt 0:00:33]} 35. Rd6 {[%emt 0:00:54]} Be6 {[%emt 0:02:19]} 36. d5 {[%emt 0:01:38]} Bf7 {[%emt 0:00:34]} 37. Qh4+ {[%emt 0:01:40]} Kg8 {[%emt 0:00:02]} 38. Rf6 {[%emt 0:07:00]} Qe5 {[%emt 0:00:52]} 39. g6 {[%emt 0:00:44]} Kg7 {[%emt 0:00:18]} 40. Rxf7+ {[%emt 0:00:00]} Rxf7 {[%emt 0:00:00]} 41. Qh7+ {[%emt 0:00:28]} Kf8 {[%emt 0:00:40]} 42. Qxf7# {[%emt 0:00:06]} 1-0

[Event "POR-ch Absolute 2018"]
[Site "Braga"]
[Date "2018.09.09"]
[Round "9"]
[White "Silva, Luis Neves Da"]
[Black "Rocha, Sergio"]
[Result "1-0"]
[ECO "E91"]
[WhiteElo "2353"]
[BlackElo "2379"]
[Annotator "NA"]
[PlyCount "77"]
[EventDate "2018.09.02"]
[EventType "tourn"]
[EventCountry "POR"]
[SourceTitle "playchess.com"]
[Source "ChessBase"]
[SourceQuality "1"]
[TimeControl "40/5400+30:1800+30"]

1. Nf3 {[%emt 0:00:00]} d6 {[%emt 0:00:00]} 2. d4 {[%emt 0:00:00]} Nf6 {[%emt 0:00:00]} 3. c4 {[%emt 0:00:00]} g6 {[%emt 0:00:02]} 4. Nc3 {[%emt 0:00:00]} Bg7 {[%emt 0:00:03]} 5. e4 {[%emt 0:00:00]} O-O {[%emt 0:00:05]} 6. Be2 {[%emt 0:00:00]} c6 {[%emt 0:00:06]} 7. O-O {[%emt 0:00:02]} a6 {[%emt 0:00:02]} 8. Re1 {[%emt 0:00:07]} b5 {[%emt 0:00:06] E91: Königsindisch (Klassisches System)} 9. e5 {[%emt 0:00:56]} Ne8 {[%emt 0:00:18] LiveBook: 14 Games} 10. Bf4 {[%emt 0:00:09]} (10. Bg5 f6 11. Bh4 Kh8 12. h3 Ra7 13. a3 Nd7 14. e6 Nb6 15. d5 cxd5 16. cxd5 {½-½ (39) Holzke,F (2524)-Howell,D (2622) Wijk aan Zee 2009}) 10... d5 $146 {[%emt 0:00:46]} ({Vorgänger:} 10... bxc4 11. Bxc4 d5 12. Bb3 h6 13. h3 Nc7 14. Qd2 Kh7 15. Rac1 Ne6 16. Be3 {1-0 (40) Milekic,D (2253)-Nikolic,D (2218) Belgrade 2016}) 11. cxd5 {[%emt 0:12:18]} cxd5 {[%emt 0:00:08]} 12. h3 {[%emt 0:00:01]} Nc7 {[%emt 0:00:46]} 13. Qd2 {[%emt 0:00:33]} Bd7 {[%emt 0:02:02]} 14. Bh6 {[%emt 0:07:38]} Nc6 {[%emt 0:01:49]} 15. Rac1 {[%emt 0:06:51]} b4 {[%emt 0:09:49]} 16. Bxg7 {[%emt 0:01:42]} Kxg7 {[%emt 0:00:05]} 17. Nd1 {[%emt 0:05:09]} Ne6 {[%emt 0:06:03]} 18. Ne3 {[%emt 0:02:25]} Nf4 {[%emt 0:01:58]} (18... Qa5 $16) 19. Bf1 {[%emt 0:06:07]} f6 {[%emt 0:01:13]} 20. g3 {[%emt 0:08:37]} Nh5 {[%emt 0:00:09]} 21. Ng4 {[%emt 0:09:22]} Kg8 {[%emt 0:06:44]} 22. Rc5 {[%emt 0:03:21]} e6 23. exf6 {[%emt 0:08:55]} Nxf6 {[%emt 0:08:28]} 24. Nh6+ {[%emt 0:00:15]} Kg7 {[%emt 0:04:35] [#]} 25. Ng5 $1 {[%emt 0:01:44]} Nxd4 $2 {[%emt 0:02:12]} (25... Ne7 26. Bd3 (26. Nxe6+ Bxe6 27. Rxe6 Qd7 $16) 26... Nf5) 26. Qxd4 {[%emt 0:00:47]} Kxh6 {[%emt 0:00:06]} 27. Nxe6 {[%emt 0:06:31]} Bxe6 {[%emt 0:00:36]} 28. Rxe6 {[%emt 0:00:01]} a5 {[%emt 0:01:09]} 29. Bg2 {[%emt 0:01:13]} Ra7 {[%emt 0:05:11]} 30. Rxd5 {[%emt 0:00:56]} Rd7 $2 {[%emt 0:01:41]} (30... Nxd5 31. Qxa7 Nf6) 31. Rxd7 {[%emt 0:10:42]} Qxd7 {[%emt 0:00:22]} 32. Qe3+ {[%emt 0:00:14]} g5 33. h4 {[%emt 0:00:09]} Qd1+ {[%emt 0:02:27]} 34. Kh2 {[%emt 0:00:07]} Qh5 {[%emt 0:00:25]} 35. Bf3 {[%emt 0:02:15]} Qg6 {[%emt 0:00:12]} 36. Kg2 {[%emt 0:01:15]} a4 {[%emt 0:02:09]} 37. Re5 $18 {[%emt 0:00:56]} Re8 {[%emt 0:00:28]} 38. hxg5+ {[%emt 0:00:18]} Kg7 {[%emt 0:00:32]} 39. gxf6+ {[%emt 0:00:05]} 1-0

[Event "POR-ch Absolute 2018"]
[Site "Braga"]
[Date "2018.09.09"]
[Round "9"]
[White "Rego, Pedro Filipe"]
[Black "Fernandes, Antonio"]
[Result "0-1"]
[ECO "A15"]
[WhiteElo "2270"]
[BlackElo "2389"]
[Annotator "NA"]
[PlyCount "98"]
[EventDate "2018.09.02"]
[EventType "tourn"]
[EventCountry "POR"]
[SourceTitle "playchess.com"]
[Source "ChessBase"]
[SourceQuality "1"]
[TimeControl "40/5400+30:1800+30"]

1. c4 {[%emt 0:00:41]} Nf6 {[%emt 0:00:43]} 2. g3 {[%emt 0:02:28]} g6 {[%emt 0:05:00]} 3. Bg2 {[%emt 0:00:54]} d5 {[%emt 0:08:29]} 4. Nf3 {[%emt 0:05:07]} Bg7 {[%emt 0:02:00]} 5. cxd5 {[%emt 0:00:36]} Nxd5 {[%emt 0:00:05]} 6. Nc3 {[%emt 0:00:07]} O-O {[%emt 0:00:44]} 7. O-O {[%emt 0:00:14]} c5 {[%emt 0:06:50] LiveBook: 485 Games} 8. Ne1 {[%emt 0:08:37] A34: Symmetrical English: 2 Nc3, lines with ...d5} (8. Nxd5 Qxd5 9. d4 cxd4 10. Be3 Nc6 11. Nxd4 Qc4 12. Nxc6 bxc6 13. Qb3 Be6 14. Qxc4 Bxc4 15. Rac1 Bxa2 16. Bxc6 Rab8 17. Bxa7 {½-½ (17) Svidler,P (2747)-Anand,V (2786) Zuerich 2017}) 8... Be6 {[%emt 0:12:28]} 9. Nd3 {[%emt 0:03:13]} Na6 {[%emt 0:01:51]} 10. Qa4 $146 {[%emt 0:02:12]} ({Predecessor:} 10. f4 b6 11. Ne5 Qd6 12. Qa4 Nac7 13. Ne4 Qd8 14. Ng5 Bc8 15. Qb3 e6 16. Ngf3 Bb7 17. d3 Ne7 18. Be3 Nc6 19. Nxc6 {½-½ (19) Kubitza,G-Keller,T (2165) Germany 1995}) 10... c4 {[%emt 0:12:37]} 11. Bxd5 {[%emt 0:39:02]} Bxd5 {[%emt 0:07:26]} 12. Nf4 $1 {[%emt 0:07:28]} Bc6 {[%emt 0:00:16]} 13. Qxc4 {[%emt 0:00:20]} Rc8 {[%emt 0:01:43]} 14. Qb3 {[%emt 0:04:15]} b5 {[%emt 0:10:29]} 15. a3 {[%emt 0:03:18]} e5 {[%emt 0:11:33]} 16. Ng2 {[%emt 0:02:35]} Nc5 {[%emt 0:00:06]} 17. Qd1 {[%emt 0:01:26]} e4 {[%emt 0:09:42]} 18. b4 {[%emt 0:07:21]} Ne6 {[%emt 0:02:08]} 19. Bb2 {[%emt 0:01:56]} Nd4 {[%emt 0:00:17]} 20. d3 {[%emt 0:02:14]} exd3 {[%emt 0:00:30]} 21. Qxd3 {[%emt 0:00:10]} Nf3+ {[%emt 0:00:19]} 22. Kh1 {[%emt 0:00:32]} Qxd3 {[%emt 0:00:07]} 23. exd3 {[%emt 0:00:03]} Nd2 {[%emt 0:00:10]} 24. Rfd1 {[%emt 0:02:13]} Nb3 {[%emt 0:00:12]} 25. d4 {[%emt 0:02:09]} Nxa1 {[%emt 0:02:04]} 26. Bxa1 {[%emt 0:00:01]} Rfd8 {[%emt 0:00:20]} 27. Na2 {[%emt 0:02:31]} Bd5 {[%emt 0:01:54]} 28. Nc1 {[%emt 0:00:18]} Bf3 {[%emt 0:00:15]} 29. Re1 {[%emt 0:00:14]} Bxd4 {[%emt 0:01:21]} 30. Bxd4 {[%emt 0:01:20]} Rxd4 {[%emt 0:00:02]} 31. Nb3 {[%emt 0:00:16]} Rd1 {[%emt 0:00:10]} 32. Rxd1 {[%emt 0:00:04]} Bxd1 {[%emt 0:00:02]} 33. Nc5 {[%emt 0:00:43]} Bf3 {[%emt 0:00:17]} 34. Kg1 {[%emt 0:00:12]} Rd8 {[%emt 0:02:46]} 35. Ne3 {[%emt 0:00:33]} Rd2 {[%emt 0:00:09]} 36. h4 {[%emt 0:01:01]} Ra2 {[%emt 0:00:08]} 37. g4 {[%emt 0:00:04]} Rxa3 {[%emt 0:00:17]} 38. Kh2 {[%emt 0:00:07]} a5 {[%emt 0:00:52]} 39. bxa5 {[%emt 0:00:06]} Rxa5 {[%emt 0:00:08]} 40. Kg3 {[%emt 0:00:00]} Bc6 {[%emt 0:00:00]} 41. Nd3 {[%emt 0:01:09]} Ra3 {[%emt 0:02:06]} 42. Nb4 {[%emt 0:01:41]} Bb7 {[%emt 0:03:07]} 43. Kf4 $19 {[%emt 0:00:11]} Rb3 {[%emt 0:00:52]} 44. Nbc2 {[%emt 0:00:58]} Rb2 {[%emt 0:00:32]} 45. f3 {[%emt 0:01:18]} b4 {[%emt 0:00:42]} 46. Nd4 {[%emt 0:00:18]} b3 {[%emt 0:00:59]} 47. Nc4 {[%emt 0:00:03]} Rf2 {[%emt 0:00:59]} 48. Ke3 {[%emt 0:00:55]} b2 {[%emt 0:00:20]} 49. Na3 {[%emt 0:00:16]} Rf1 {[%emt 0:00:08]} 0-1

[Event "POR-ch Absolute 2018"]
[Site "Braga"]
[Date "2018.09.09"]
[Round "9"]
[White "Padeiro, Jose"]
[Black "Vasques, Antonio Pedro Freix"]
[Result "1/2-1/2"]
[ECO "E81"]
[WhiteElo "2209"]
[BlackElo "2239"]
[Annotator "NA"]
[PlyCount "71"]
[EventDate "2018.09.02"]
[EventType "tourn"]
[EventCountry "POR"]
[SourceTitle "playchess.com"]
[Source "ChessBase"]
[SourceQuality "1"]
[TimeControl "40/5400+30:1800+30"]

1. d4 {[%emt 0:00:00]} Nf6 {[%emt 0:00:00]} 2. c4 {[%emt 0:00:06]} g6 {[%emt 0:00:00]} 3. Nc3 {[%emt 0:00:09]} Bg7 {[%emt 0:00:06]} 4. e4 {[%emt 0:00:11]} d6 {[%emt 0:00:04]} 5. f3 {[%emt 0:00:20]} O-O {[%emt 0:00:14]} 6. Bg5 {[%emt 0:00:04]} c5 {[%emt 0:02:50]} 7. d5 {[%emt 0:00:21]} h6 {[%emt 0:00:22]} 8. Be3 {[%emt 0:00:06]} e6 {[%emt 0:00:06]} 9. Qd2 {[%emt 0:00:16]} a6 {[%emt 0:11:46]} 10. a4 {[%emt 0:00:14]} exd5 {[%emt 0:01:10]} 11. cxd5 {[%emt 0:00:48]} Nbd7 {[%emt 0:01:12]} 12. Nh3 {[%emt 0:00:15]} Ne5 {[%emt 0:04:14]} 13. Nf2 {[%emt 0:00:11]} h5 {[%emt 0:00:08] A65: Benoni} 14. Be2 {[%emt 0:01:31]} Nh7 {[%emt 0:04:45]} 15. O-O {[%emt 0:06:36]} f5 {[%emt 0:04:48]} 16. f4 {[%emt 0:00:24] LiveBook: 4 Games} Ng4 {[%emt 0:02:06]} 17. Nxg4 {[%emt 0:00:15]} (17. Bxg4 $5 hxg4 18. e5 $14) 17... hxg4 {[%emt 0:00:07]} 18. e5 $1 {[%emt 0:00:30]} dxe5 {[%emt 0:04:54]} 19. Bxc5 {[%emt 0:02:27] [#]} Re8 $146 {[%emt 0:00:44]} 20. fxe5 {[%emt 0:04:14]} ({Better is} 20. d6 $16) 20... Bxe5 {[%emt 0:01:29]} 21. Bd4 {[%emt 0:07:38]} Qg5 {[%emt 0:06:55]} 22. Rad1 {[%emt 0:02:02]} Bd6 {[%emt 0:01:55]} 23. Qxg5 {[%emt 0:08:07]} Nxg5 {[%emt 0:01:44]} 24. Bxg4 {[%emt 0:02:32]} ({Günstiger ist} 24. b3 $15) 24... Bd7 $2 {[%emt 0:10:56]} (24... fxg4 $17 25. Rf6 Be7 26. Rxg6+ Kh7) 25. Bf3 {[%emt 0:15:15]} b5 {[%emt 0:12:31]} 26. axb5 {[%emt 0:00:37]} axb5 {[%emt 0:00:05]} 27. Rfe1 {[%emt 0:08:48]} b4 {[%emt 0:04:34]} 28. Ne2 {[%emt 0:12:19]} Ra5 {[%emt 0:05:14]} 29. Bf2 {[%emt 0:05:32]} Kf7 {[%emt 0:04:46]} 30. Nd4 {[%emt 0:04:37]} Rxe1+ {[%emt 0:01:13]} 31. Bxe1 {[%emt 0:00:17]} Ra2 {[%emt 0:00:24]} 32. Rb1 $11 {[%emt 0:05:58]} Bc5 {[%emt 0:01:55]} 33. Bf2 {[%emt 0:00:27]} Bxd4 {[%emt 0:01:29]} 34. Bxd4 {[%emt 0:00:10]} Nxf3+ {[%emt 0:00:05]} 35. gxf3 {[%emt 0:00:11]} Ra5 {[%emt 0:00:04]} 36. d6 {[%emt 0:05:24]} 1/2-1/2